fUST/lending_fUST_20250725
["ID","MTS","AMOUNT","RATE_DAILY","PERIOD"]
[374653923,1753401064848,-500.0,0.0002005,2]
[374653924,1753401064858,-500.0,0.0002005,2]
[374653925,1753401064867,-500.0,0.0002005,2]
[374653926,1753401064877,-345.0,0.0002006,2]
[374653927,1753401064886,-188.465792,0.00020068,2]
[374653928,1753401064896,-217.669127,0.00020068,2]
[374653929,1753401064906,-217.669127,0.00020068,2]
[374653930,1753401064915,-231.456694,0.00020068,2]
[374653931,1753401064925,-231.456694,0.00020068,2]
[374653932,1753401064934,-227.064974,0.00020068,2]
[374653933,1753401064944,-227.064974,0.00020068,2]
[374653934,1753401064953,-163.0458596,0.00020068,2]
[374653935,1753401064965,-1336.9541404,0.00020068,2]
[374653936,1753401064974,-803.0458596,0.00020068,2]
[374653937,1753401064986,-696.9541404,0.00020068,2]
[374653938,1753401064996,-1500.0,0.00020068,2]
[374653939,1753401065006,-1500.0,0.00020068,2]
[374653940,1753401065015,-405.20795623,0.00020068,2]
[374653941,1753401065645,-380.36253887,0.00018541,2]
[374653942,1753401065793,-59.80637515,0.00018541,2]
[374653943,1753401065803,-495.78913421,0.00018541,2]
[374653944,1753401066220,-4.21086579,0.00018541,2]
[374653945,1753401066231,-500.0,0.00018541,2]
[374653946,1753401066240,-500.0,0.00018541,2]
[374653947,1753401066250,-500.0,0.00018541,2]
[374653948,1753401066260,-629.57612627,0.00018541,2]
[374653949,1753401066270,-500.0,0.00018541,2]
[374653950,1753401066282,-253.78737565,0.00018541,2]
[374653951,1753401066291,-500.0,0.00018541,2]
[374653952,1753401066301,-500.0,0.00018541,2]
[374653953,1753401066311,-500.0,0.00018541,2]
[374653954,1753401066320,-500.0,0.00018541,2]
[374653955,1753401066330,-500.0,0.00018541,2]
[374653956,1753401066340,-500.0,0.00018541,2]
[374653957,1753401066349,-500.0,0.00018541,2]
[374653958,1753401066359,-500.0,0.00018541,2]
[374653959,1753401066368,-500.0,0.00018541,2]
[374653960,1753401066378,-500.0,0.00018541,2]
[374653961,1753401066388,-500.0,0.00018541,2]
[374653962,1753401066398,-400.25998131,0.00018541,2]
[374653963,1753401066408,-421.05980424,0.00018541,2]
[374653964,1753401066418,-500.0,0.00018541,2]
[374653965,1753401066427,-500.0,0.00018541,2]
[374653966,1753401066439,-500.0,0.00018541,2]
[374653967,1753401066453,-500.0,0.00018541,2]
[374653968,1753401066462,-215.83782575,0.00018541,2]
[374653969,1753401066471,-500.0,0.00018541,2]
[374653970,1753401066482,-500.0,0.00018541,2]
[374653971,1753401066491,-500.0,0.00018541,2]
[374653972,1753401066502,-500.0,0.00018541,2]
[374653973,1753401066512,-500.0,0.00018541,2]
[374653974,1753401066523,-500.0,0.00018541,2]
[374653975,1753401066532,-500.0,0.00018541,2]
[374653976,1753401066542,-500.0,0.00018541,2]
[374653977,1753401066552,-500.0,0.00018541,2]
[374653978,1753401066564,-500.0,0.00018541,2]
[374653979,1753401066574,-500.0,0.00018541,2]
[374653980,1753401066584,-328.05293874,0.00018541,2]
[374653981,1753401066594,-500.0,0.00018541,2]
[374653982,1753401066605,-500.0,0.00018541,2]
[374653983,1753401066614,-531.01927034,0.00018541,2]
[374653984,1753401066624,-500.0,0.00018541,2]
[374653985,1753401066635,-500.0,0.00018541,2]
[374653986,1753401066647,-500.0,0.00018541,2]
[374653987,1753401066656,-500.0,0.00018541,2]
[374653988,1753401066666,-500.0,0.00018541,2]
[374653989,1753401066678,-500.0,0.00018541,2]
[374653990,1753401066690,-500.0,0.00018541,2]
[374653991,1753401066700,-500.0,0.00018541,2]
[374653992,1753401066710,-316.70953335,0.00018541,2]
[374653993,1753401066729,-183.29046665,0.00018541,2]
[374653994,1753401066739,-500.0,0.00018541,2]
[374653995,1753401066749,-500.0,0.00018541,2]
[374653996,1753401066761,-374.11428343,0.00018541,2]
[374653997,1753401066773,-500.0,0.00018541,2]
[374653998,1753401066783,-500.0,0.00018541,2]
[374653999,1753401066793,-500.0,0.00018541,2]
[374654000,1753401066802,-2.67276909,0.00018541,2]
[374654001,1753401080191,288.22081929,0.00018441,2]
[374654002,1753401106679,8243.51823178,0.00018444,2]
[374654003,1753401106705,30000.0,0.00018444,2]
[374654004,1753401106729,30000.0,0.00018444,2]
[374654005,1753401106752,30000.0,0.00018444,2]
[374654006,1753401106775,30000.0,0.00018444,2]
[374654007,1753401106798,30000.0,0.00018444,2]
[374654008,1753401106821,30000.0,0.00018444,2]
[374654009,1753401106844,30000.0,0.00018444,2]
[374654010,1753401106867,30000.0,0.00018444,2]
[374654011,1753401106890,17800.44694752,0.00018444,2]
[374654012,1753401120997,5000.0,0.000185,2]
[374654014,1753401132178,221.760761,0.00013699,2]
[374654015,1753401136794,5000.0,0.000185,2]
[374654016,1753401152606,1977.79229148,0.000185,2]
[374654017,1753401152635,3022.20770852,0.000185,2]
[374654018,1753401167793,5000.0,0.000185,2]
[374654019,1753401171614,7849.4917271,0.00017546,2]
[374654020,1753401180517,940.6574874,0.0001844,2]
[374654021,1753401184276,5000.0,0.000185,2]
[374654022,1753401199502,5000.0,0.000185,2]
[374654023,1753401215806,3187.64307698,0.000185,2]
[374654024,1753401215831,1812.35692302,0.000185,2]
[374654025,1753401230972,5000.0,0.000185,2]
[374654026,1753401246307,5000.0,0.000185,2]
[374654027,1753401246951,202.44825958,0.0001844,2]
[374654028,1753401262276,5000.0,0.000185,2]
[374654029,1753401276982,12985.1948174,0.00018443,2]
[374654030,1753401277007,30000.0,0.00018443,2]
[374654031,1753401283906,483.01565156,0.0001789,2]
[374654032,1753401284240,241.50782578,0.00017983,2]
[374654033,1753401343771,172.472485,0.00017674,2]
[374654034,1753401445389,800.0,0.00017176,2]
[374654035,1753401471737,4490.86924196,0.00018,2]
[374654036,1753401471763,509.13075804,0.00018,2]
[374654037,1753401487667,5000.0,0.00018,2]
[374654038,1753401503499,4490.86924196,0.00018,2]
[374654039,1753401503526,509.13075804,0.00018,2]
[374654040,1753401518759,5000.0,0.00018,2]
[374654041,1753401534503,4490.86924196,0.00018,2]
[374654042,1753401586250,193.20626062,0.00017724,2]
[374654043,1753401722835,5000.0,0.00018,2]
[374654045,1753401737875,5000.0,0.00018,2]
[374654046,1753401753197,5000.0,0.00018,2]
[374654047,1753401769402,5000.0,0.00018,2]
[374654048,1753401785212,5000.0,0.00018,2]
[374654049,1753401800987,5000.0,0.00018,2]
[374654050,1753401816844,5000.0,0.00018,2]
[374654051,1753401832586,5000.0,0.00018,2]
[374654052,1753401848260,5000.0,0.00018,2]
[374654053,1753401863946,5000.0,0.00018,2]
[374654054,1753401879693,5000.0,0.00018,2]
[374654055,1753401895513,5000.0,0.00018,2]
[374654056,1753401911554,5000.0,0.00018,2]
[374654057,1753401927375,5000.0,0.00018,2]
[374654058,1753401945094,4025.69096288,0.00018,2]
[374654059,1753402043136,-974.30903712,0.00018,2]
[374654060,1753402043158,-212.11369508,0.00018027,2]
[374654061,1753402043184,-212.11369505,0.00018103,2]
[374654062,1753402043205,-175.598093,0.00018127,2]
[374654063,1753402043226,-212.11369505,0.00018178,2]
[374654064,1753402043249,-152.56018302,0.00018228,2]
[374654065,1753402043273,-212.11369505,0.00018254,2]
[374654066,1753402043299,-800.0,0.00018272,2]
[374654067,1753402043321,-212.11369505,0.00018329,2]
[374654068,1753402043343,-202.44825958,0.00018342,2]
[374654069,1753402043366,-300.0,0.00018428,2]
[374654070,1753402043387,-138.04434666,0.00018429,2]
[374654073,1753402089219,10000.0,0.00017431,2]
[374654077,1753402188349,337.48628529,0.00017697,2]
[374654078,1753402188693,168.74314264,0.00017697,2]
[374654079,1753402210930,-272.50732931,0.00018144,2]
[374654155,1753402232452,-460.0,0.00018243,2]
[374654157,1753402232462,-300.0,0.00018243,2]
[374654159,1753402232472,-300.0,0.00018243,2]
[374654160,1753402232482,-300.0,0.00018243,2]
[374654163,1753402232492,-300.0,0.00018243,2]
[374654166,1753402232502,-1200.0,0.00018243,2]
[374654168,1753402232512,-460.0,0.00018243,2]
[374654169,1753402232522,-211.9741843,0.00018243,2]
[374654222,1753402238214,-88.0258157,0.00018243,2]
[374654223,1753402238224,-460.0,0.00018243,2]
[374654224,1753402238234,-211.13999792,0.00018243,2]
[374654225,1753402238243,-500.0,0.00018243,2]
[374654226,1753402238253,-314.22810431,0.00018243,2]
[374654227,1753402238263,-571.61023019,0.00018243,2]
[374654228,1753402238272,-500.0,0.00018243,2]
[374654229,1753402238282,-500.0,0.00018243,2]
[374654230,1753402238291,-571.61023019,0.00018243,2]
[374654231,1753402238301,-500.0,0.00018243,2]
[374654232,1753402238311,-500.0,0.00018243,2]
[374654233,1753402238320,-500.0,0.00018243,2]
[374654234,1753402238330,-500.0,0.00018243,2]
[374654235,1753402238339,-571.61023019,0.00018243,2]
[374654236,1753402238348,-500.0,0.00018243,2]
[374654237,1753402238358,-401.74491578,0.00018243,2]
[374654238,1753402238367,-571.61023019,0.00018243,2]
[374654239,1753402238377,-500.0,0.00018243,2]
[374654240,1753402238387,-500.0,0.00018243,2]
[374654241,1753402238397,-571.61023019,0.00018243,2]
[374654242,1753402238407,-500.0,0.00018243,2]
[374654243,1753402238417,-500.0,0.00018243,2]
[374654244,1753402238426,-571.61023019,0.00018243,2]
[374654245,1753402238436,-640.2580383,0.00018243,2]
[374654246,1753402238447,-500.0,0.00018243,2]
[374654247,1753402238457,-571.61023019,0.00018243,2]
[374654248,1753402238468,-346.94406986,0.00018243,2]
[374654249,1753402238478,-571.61023019,0.00018243,2]
[374654250,1753402238487,-500.0,0.00018243,2]
[374654251,1753402238497,-500.0,0.00018243,2]
[374654252,1753402238507,-571.61023019,0.00018243,2]
[374654253,1753402238516,-500.0,0.00018243,2]
[374654254,1753402238526,-500.0,0.00018243,2]
[374654255,1753402238536,-571.61023019,0.00018243,2]
[374654256,1753402238545,-571.61023019,0.00018243,2]
[374654257,1753402238555,-500.0,0.00018243,2]
[374654258,1753402238564,-571.61023019,0.00018243,2]
[374654259,1753402238574,-500.0,0.00018243,2]
[374654260,1753402238584,-571.61023019,0.00018243,2]
[374654261,1753402238593,-571.61023019,0.00018243,2]
[374654262,1753402238603,-500.0,0.00018243,2]
[374654263,1753402238613,-571.61023019,0.00018243,2]
[374654264,1753402238623,-500.0,0.00018243,2]
[374654265,1753402238633,-571.61023019,0.00018243,2]
[374654266,1753402238643,-571.61023019,0.00018243,2]
[374654267,1753402238653,-500.0,0.00018243,2]
[374654268,1753402238662,-571.61023019,0.00018243,2]
[374654269,1753402238671,-500.0,0.00018243,2]
[374654270,1753402238681,-571.61023019,0.00018243,2]
[374654271,1753402238692,-571.61023019,0.00018243,2]
[374654272,1753402238701,-500.0,0.00018243,2]
[374654273,1753402238711,-50000.0,0.00018244,2]
[374654274,1753402238722,-5000.0,0.00018245,2]
[374654275,1753402238731,-1112.94581573,0.000184,2]
[374654276,1753402238740,-1061.95565334,0.00018429,2]
[374654277,1753402238750,-460.0,0.00018429,2]
[374654278,1753402238760,-460.0,0.00018429,2]
[374654279,1753402238769,-735.11,0.00018429,2]
[374654280,1753402238779,-460.0,0.00018429,2]
[374654281,1753402238788,-460.0,0.00018429,2]
[374654282,1753402238798,-460.0,0.00018429,2]
[374654283,1753402238807,-460.0,0.00018429,2]
[374654284,1753402238816,-372.00289012,0.00018429,2]
[374654285,1753402238826,-1926.9,0.00018429,2]
[374654286,1753402238836,-460.0,0.00018429,2]
[374654287,1753402238845,-460.0,0.00018429,2]
[374654288,1753402238855,-460.0,0.00018429,2]
[374654289,1753402238864,-460.0,0.00018429,2]
[374654290,1753402238874,-736.49,0.00018432,2]
[374654291,1753402238885,-460.0,0.00018432,2]
[374654292,1753402238896,-1000.0,0.00018432,2]
[374654293,1753402238905,-460.0,0.00018432,2]
[374654294,1753402238915,-378.06606047,0.00018432,2]
[374654295,1753402238924,-460.0,0.00018432,2]
[374654296,1753402238935,-460.0,0.00018432,2]
[374654297,1753402238946,-460.0,0.00018432,2]
[374654298,1753402238955,-460.0,0.00018432,2]
[374654299,1753402238966,-460.0,0.00018432,2]
[374654300,1753402238975,-460.0,0.00018432,2]
[374654301,1753402238984,-493.24,0.00018433,3]
[374654302,1753402238994,-246.62,0.00018433,3]
[374654303,1753402239003,-739.9,0.00018433,3]
[374654304,1753402239013,-460.0,0.00018438,2]
[374654305,1753402239023,-460.0,0.00018438,2]
[374654306,1753402239033,-460.0,0.00018438,2]
[374654307,1753402239042,-460.0,0.00018438,2]
[374654308,1753402239052,-460.0,0.00018438,2]
[374654309,1753402239062,-528.67,0.00018438,2]
[374654310,1753402239071,-3725.83,0.00018438,2]
[374654311,1753402239081,-460.0,0.00018438,2]
[374654312,1753402239092,-7494.55,0.00018438,2]
[374654313,1753402239103,-733.51,0.00018438,2]
[374654314,1753402239114,-460.0,0.00018438,2]
[374654315,1753402239123,-987.99,0.00018438,2]
[374654316,1753402239133,-460.0,0.00018438,2]
[374654317,1753402239143,-460.0,0.00018438,2]
[374654318,1753402239153,-460.0,0.00018438,2]
[374654319,1753402239163,-843.37,0.00018438,2]
[374654320,1753402239173,-3605.57,0.00018438,2]
[374654321,1753402239183,-3132.91,0.00018438,2]
[374654322,1753402239192,-460.0,0.00018438,2]
[374654323,1753402239202,-881.01,0.00018438,2]
[374654324,1753402239212,-460.0,0.00018438,2]
[374654325,1753402239222,-2584.38,0.00018438,2]
[374654326,1753402239231,-1036.98,0.00018438,2]
[374654327,1753402239241,-460.0,0.00018438,2]
[374654328,1753402239251,-460.0,0.0001844,2]
[374654329,1753402239261,-460.0,0.0001844,2]
[374654330,1753402239271,-460.0,0.0001844,2]
[374654331,1753402239281,-460.0,0.0001844,2]
[374654332,1753402239290,-460.0,0.0001844,2]
[374654333,1753402239301,-460.0,0.0001844,2]
[374654334,1753402239311,-460.0,0.0001844,2]
[374654335,1753402239321,-188.34103353,0.0001844,2]
[374654336,1753402239331,-460.0,0.0001844,2]
[374654337,1753402239341,-912.32,0.0001844,2]
[374654338,1753402239351,-1351.51,0.0001844,2]
[374654339,1753402239361,-460.0,0.0001844,2]
[374654340,1753402239371,-460.0,0.0001844,2]
[374654341,1753402239382,-460.0,0.0001844,2]
[374654342,1753402239392,-460.0,0.0001844,2]
[374654343,1753402239402,-958.48,0.0001844,2]
[374654344,1753402239412,-934.3,0.0001844,2]
[374654345,1753402239422,-1347.9,0.0001844,2]
[374654346,1753402239432,-579.20765751,0.0001844,2]
[374654347,1753402239441,-460.0,0.0001844,2]
[374654348,1753402239454,-455.0435308,0.00018441,2]
[374654349,1753402239463,-170.87422077,0.00018441,2]
[374654350,1753402239473,-1015.50208925,0.00018441,2]
[374654351,1753402239483,-460.0,0.00018441,2]
[374654352,1753402239494,-585.94249717,0.00018441,2]
[374654353,1753402239504,-460.0,0.00018441,2]
[374654354,1753402239514,-460.0,0.00018441,2]
[374654355,1753402239524,-460.0,0.00018441,2]
[374654356,1753402239534,-460.0,0.00018441,2]
[374654358,1753402239544,-460.0,0.00018441,2]
[374654359,1753402239553,-460.0,0.00018441,2]
[374654360,1753402239564,-500.0,0.00018441,2]
[374654361,1753402239574,-500.0,0.00018441,2]
[374654362,1753402239585,-500.0,0.00018441,2]
[374654363,1753402239595,-460.0,0.00018441,2]
[374654364,1753402239605,-460.0,0.00018441,2]
[374654365,1753402239615,-460.0,0.00018441,2]
[374654366,1753402239625,-515.82,0.00018441,2]
[374654367,1753402239635,-515.82,0.00018441,2]
[374654368,1753402239645,-461.66446139,0.00018441,2]
[374654369,1753402239655,-460.0,0.00018441,2]
[374654370,1753402239665,-463.1547138,0.00018441,2]
[374654371,1753402239675,-460.0,0.00018441,2]
[374654372,1753402239685,-460.0,0.00018441,2]
[374654373,1753402239696,-460.0,0.00018441,2]
[374654374,1753402239706,-460.0,0.00018441,2]
[374654375,1753402239716,-460.0,0.00018441,2]
[374654376,1753402239726,-460.0,0.00018441,2]
[374654377,1753402239735,-460.0,0.00018441,2]
[374654378,1753402239744,-460.0,0.00018441,2]
[374654379,1753402239754,-460.0,0.00018441,2]
[374654381,1753402239763,-460.0,0.00018441,2]
[374654383,1753402239773,-460.0,0.00018441,2]
[374654385,1753402239783,-460.0,0.00018441,2]
[374654387,1753402239793,-460.0,0.00018441,2]
[374654389,1753402239802,-460.0,0.00018441,2]
[374654391,1753402239812,-451.35645911,0.00018441,2]
[374654393,1753402239822,-460.0,0.00018441,2]
[374654395,1753402239832,-723.02,0.00018441,2]
[374654397,1753402239842,-541.85,0.00018441,2]
[374654399,1753402239851,-460.0,0.00018441,2]
[374654401,1753402239861,-460.0,0.00018441,2]
[374654403,1753402239871,-460.0,0.00018441,2]
[374654405,1753402239881,-460.0,0.00018441,2]
[374654407,1753402239893,-460.0,0.00018441,2]
[374654409,1753402239903,-460.0,0.00018441,2]
[374654411,1753402239912,-460.0,0.00018441,2]
[374654413,1753402239922,-460.0,0.00018441,2]
[374654415,1753402239933,-460.0,0.00018441,2]
[374654417,1753402239943,-460.0,0.00018441,2]
[374654419,1753402239956,-460.0,0.00018441,2]
[374654421,1753402239967,-460.0,0.00018441,2]
[374654423,1753402239977,-460.0,0.00018441,2]
[374654425,1753402239986,-460.0,0.00018441,2]
[374654427,1753402239995,-460.0,0.00018441,2]
[374654429,1753402240005,-460.0,0.00018441,2]
[374654431,1753402240015,-863.37,0.00018441,2]
[374654433,1753402240024,-568.26,0.00018441,2]
[374654436,1753402240034,-817.24,0.00018441,2]
[374654438,1753402240044,-500.0,0.00018441,2]
[374654440,1753402240053,-460.0,0.00018441,2]
[374654442,1753402240063,-719.13,0.00018441,2]
[374654454,1753402240163,-2438.24,0.00018441,2]
[374654456,1753402240173,-238.77431108,0.00018441,2]
[374654458,1753402240182,-460.0,0.00018441,2]
[374654460,1753402240191,-460.0,0.00018441,2]
[374654461,1753402240202,-688.77,0.00018441,2]
[374654463,1753402240211,-466.88458515,0.00018441,2]
[374654466,1753402240220,-460.0,0.00018441,2]
[374654467,1753402240229,-460.0,0.00018441,2]
[374654469,1753402240239,-460.0,0.00018441,2]
[374654471,1753402240248,-461.32,0.00018441,2]
[374654473,1753402240257,-460.0,0.00018441,2]
[374654476,1753402240267,-460.0,0.00018441,2]
[374654478,1753402240277,-1150.71,0.00018441,2]
[374654480,1753402240286,-460.0,0.00018441,2]
[374654482,1753402240295,-502.57,0.00018441,2]
[374654484,1753402240304,-460.0,0.00018441,2]
[374654486,1753402240315,-460.0,0.00018441,2]
[374654488,1753402240324,-742.16,0.00018441,2]
[374654490,1753402240333,-460.0,0.00018441,2]
[374654492,1753402240342,-460.0,0.00018441,2]
[374654494,1753402240351,-460.0,0.00018441,2]
[374654496,1753402240360,-460.0,0.00018441,2]
[374654498,1753402240370,-460.0,0.00018441,2]
[374654500,1753402240379,-460.0,0.00018441,2]
[374654502,1753402240389,-461.45609941,0.00018441,2]
[374654504,1753402240399,-460.0,0.00018441,2]
[374654506,1753402240408,-460.0,0.00018441,2]
[374654507,1753402240418,-695.46,0.00018441,2]
[374654509,1753402240427,-460.0,0.00018441,2]
[374654512,1753402240437,-460.0,0.00018441,2]
[374654514,1753402240447,-460.0,0.00018441,2]
[374654516,1753402240457,-660.83,0.00018441,2]
[374654518,1753402240466,-460.0,0.00018441,2]
[374654520,1753402240476,-460.0,0.00018441,2]
[374654522,1753402240486,-460.0,0.00018441,2]
[374654524,1753402240496,-500.0,0.00018442,2]
[374654526,1753402240505,-500.0,0.00018442,2]
[374654528,1753402240515,-289.184877,0.00018442,2]
[374654530,1753402240525,-132714.19949809,0.00018443,2]
[374654532,1753402240534,-163.0975522,0.000185,2]
[374654534,1753402240543,-2438.04915821,0.000185,2]
[374654536,1753402240553,-460.0,0.00018517,2]
[374654537,1753402240562,-460.0,0.00018517,2]
[374654540,1753402240572,-429.7456075,0.00018521,2]
[374654542,1753402240581,-859.3557326,0.00018521,2]
[374654544,1753402240591,-215.0738,0.00018536,2]
[374654546,1753402240603,-460.0,0.00018539,2]
[374654548,1753402240613,-460.0,0.00018539,2]
[374654550,1753402240623,-460.0,0.00018539,2]
[374654552,1753402240632,-460.0,0.00018539,2]
[374654554,1753402240642,-460.0,0.00018539,2]
[374654556,1753402240651,-554.99,0.00018539,2]
[374654558,1753402240660,-460.0,0.00018539,2]
[374654560,1753402240670,-460.0,0.00018539,2]
[374654561,1753402240679,-312.81081687,0.00018539,2]
[374654562,1753402240688,-460.0,0.00018539,2]
[374654563,1753402240698,-645.93,0.00018539,2]
[374654564,1753402240707,-1415.21,0.00018539,2]
[374654565,1753402240718,-1362.34,0.00018539,2]
[374654566,1753402240727,-1067.29,0.00018539,2]
[374654567,1753402240736,-460.0,0.00018539,2]
[374654568,1753402240745,-523.29,0.00018539,2]
[374654569,1753402240755,-460.0,0.00018539,2]
[374654570,1753402240764,-460.0,0.00018539,2]
[374654571,1753402240773,-854.5,0.00018539,2]
[374654572,1753402240782,-767.2,0.00018539,2]
[374654573,1753402240791,-460.0,0.00018539,2]
[374654574,1753402240801,-1003.64,0.00018539,2]
[374654575,1753402240810,-544.03,0.00018539,2]
[374654576,1753402240819,-1255.1,0.00018539,2]
[374654577,1753402240829,-160.0,0.00018539,2]
[374654578,1753402240837,-341.40142005,0.00018541,2]
[374654579,1753402240847,-460.0,0.00018541,2]
[374654580,1753402240857,-460.0,0.00018541,2]
[374654581,1753402240866,-460.0,0.00018541,2]
[374654582,1753402240875,-460.0,0.00018541,2]
[374654583,1753402240886,-460.0,0.00018541,2]
[374654584,1753402240896,-460.0,0.00018541,2]
[374654585,1753402240905,-460.0,0.00018541,2]
[374654586,1753402240915,-460.0,0.00018541,2]
[374654587,1753402240924,-460.0,0.00018541,2]
[374654588,1753402240934,-513.29131247,0.00018541,2]
[374654589,1753402240943,-460.0,0.00018541,2]
[374654590,1753402240952,-460.0,0.00018541,2]
[374654591,1753402240963,-460.0,0.00018541,2]
[374654592,1753402240972,-460.0,0.00018541,2]
[374654593,1753402240981,-460.0,0.00018541,2]
[374654595,1753402240990,-616.03,0.00018541,2]
[374654596,1753402241000,-841.29,0.00018541,2]
[374654597,1753402241009,-460.0,0.00018541,2]
[374654598,1753402241018,-460.0,0.00018541,2]
[374654600,1753402241027,-442.66777126,0.00018541,2]
[374654602,1753402241037,-915.5,0.00018541,2]
[374654604,1753402241047,-460.0,0.00018541,2]
[374654606,1753402241056,-460.0,0.00018541,2]
[374654608,1753402241066,-605.29,0.00018541,2]
[374654610,1753402241076,-460.0,0.00018541,2]
[374654612,1753402241085,-460.0,0.00018541,2]
[374654614,1753402241095,-460.0,0.00018541,2]
[374654616,1753402241105,-632.16,0.00018541,2]
[374654618,1753402241114,-184.0,0.00018541,2]
[374654620,1753402241124,-460.0,0.00018541,2]
[374654622,1753402241134,-668.74,0.00018541,2]
[374654624,1753402241143,-6012.45,0.00018541,2]
[374654626,1753402241153,-556.55,0.00018541,2]
[374654628,1753402241162,-2517.3,0.00018541,2]
[374654630,1753402241172,-943.23,0.00018541,2]
[374654632,1753402241182,-460.0,0.00018541,2]
[374654634,1753402241191,-2462.79,0.00018541,2]
[374654636,1753402241201,-460.0,0.00018541,2]
[374654638,1753402241211,-3430.01,0.00018541,2]
[374654640,1753402241220,-2288.37,0.00018541,2]
[374654642,1753402241230,-460.0,0.00018541,2]
[374654644,1753402241239,-460.0,0.00018543,2]
[374654646,1753402241249,-460.0,0.00018543,2]
[374654648,1753402241259,-460.0,0.00018543,2]
[374654650,1753402241268,-460.0,0.00018543,2]
[374654652,1753402241278,-460.0,0.00018543,2]
[374654654,1753402241287,-466.13,0.00018543,2]
[374654656,1753402241297,-257.20965285,0.00018543,2]
[374654658,1753402241307,-460.0,0.00018543,2]
[374654660,1753402241317,-817.98,0.00018543,2]
[374654662,1753402241326,-460.0,0.00018543,2]
[374654664,1753402241336,-940.2,0.00018543,2]
[374654666,1753402241346,-462.14455293,0.00018543,2]
[374654668,1753402241355,-460.0,0.00018543,2]
[374654670,1753402241365,-460.0,0.00018543,2]
[374654672,1753402241375,-675.06,0.00018543,2]
[374654674,1753402241385,-460.0,0.00018543,2]
[374654676,1753402241395,-460.0,0.00018543,2]
[374654678,1753402241404,-463.69381983,0.00018543,2]
[374654680,1753402241414,-777.33,0.00018543,2]
[374654683,1753402241424,-460.0,0.00018543,2]
[374654685,1753402241433,-460.0,0.00018543,2]
[374654687,1753402241443,-1266.96,0.00018543,2]
[374654689,1753402241453,-460.0,0.00018543,2]
[374654690,1753402241462,-3453.17,0.00018543,2]
[374654693,1753402241472,-460.0,0.00018543,2]
[374654695,1753402241481,-949.99,0.00018543,2]
[374654697,1753402241491,-460.0,0.00018543,2]
[374654699,1753402241501,-460.0,0.00018543,2]
[374654701,1753402241511,-460.0,0.00018543,2]
[374654703,1753402241520,-460.0,0.00018543,2]
[374654705,1753402241530,-460.0,0.00018543,2]
[374654707,1753402241540,-460.0,0.00018543,2]
[374654709,1753402241549,-460.0,0.00018543,2]
[374654711,1753402241559,-460.0,0.00018543,2]
[374654712,1753402241569,-460.0,0.00018543,2]
[374654714,1753402241578,-1174.28,0.00018543,2]
[374654717,1753402241590,-460.0,0.00018543,2]
[374654719,1753402241600,-4246.15,0.00018543,2]
[374654721,1753402241610,-585.44,0.00018543,2]
[374654723,1753402241619,-635.09,0.00018543,2]
[374654725,1753402241629,-460.0,0.00018543,2]